[Event "Titled Tuesday Blitz October 18 Late 2022"]
[White "Rangel, Daniel"]
[Black "Castellanos Gomez, Alejandro"]
[WhiteFideId "2124475"]
[BlackFideId "22284141"]
[WhiteElo "2225"]
[BlackElo "2168"]
[Result "0-1"]
[Round "11"]
[TimeControl "180+1"]
[Date "2022.10.19"]
[WhiteClock "0:00:01"]
[BlackClock "0:00:05"]

1. c4 {[%clk 0:03:00]}  g6 {[%clk 0:02:57]} 2. g3 {[%clk 0:02:57]}  Bg7 {[%clk 0:02:56]} 3. Bg2 {[%clk 0:02:57]}  e5 {[%clk 0:02:56]} 4. Nc3 {[%clk 0:02:57]}  f5 {[%clk 0:02:56]} 5. e3 {[%clk 0:02:56]}  Nf6 {[%clk 0:02:56]} 6. Nge2 {[%clk 0:02:57]}  O-O {[%clk 0:02:56]} 7. O-O {[%clk 0:02:57]}  d6 {[%clk 0:02:55]} 8. d3 {[%clk 0:02:57]}  c6 {[%clk 0:02:51]} 9. Rb1 {[%clk 0:02:56]}  Be6 {[%clk 0:02:50]} 10. b4 {[%clk 0:02:53]}  a6 {[%clk 0:02:43]} 11. a4 {[%clk 0:02:51]}  Qd7 {[%clk 0:02:34]} 12. b5 {[%clk 0:02:51]}  axb5 {[%clk 0:02:34]} 13. axb5 {[%clk 0:02:52]}  h5 {[%clk 0:02:18]} 14. Na4 {[%clk 0:02:32]}  Qf7 {[%clk 0:02:00]} 15. Nb6 {[%clk 0:02:29]}  Ra7 {[%clk 0:01:49]} 16. Bb2 {[%clk 0:02:25]}  h4 {[%clk 0:01:44]} 17. c5 {[%clk 0:02:20]}  hxg3 {[%clk 0:01:38]} 18. hxg3 {[%clk 0:02:19]}  Ng4 {[%clk 0:01:38]} 19. cxd6 {[%clk 0:02:16]}  Bh6 {[%clk 0:01:28]} 20. Nc4 {[%clk 0:02:01]}  Bxc4 {[%clk 0:01:20]} 21. dxc4 {[%clk 0:02:02]}  Qh7 {[%clk 0:01:16]} 22. bxc6 {[%clk 0:01:36]}  Bxe3 {[%clk 0:01:03]} 23. Qd5+ {[%clk 0:01:28]}  Rf7 {[%clk 0:01:01]} 24. Bh3 {[%clk 0:00:47]}  Qxh3 {[%clk 0:00:50]} 25. Qg2 {[%clk 0:00:46]}  Qxg2+ {[%clk 0:00:37]} 26. Kxg2 {[%clk 0:00:47]}  Nxc6 {[%clk 0:00:27]} 27. fxe3 {[%clk 0:00:42]}  Nxe3+ {[%clk 0:00:20]} 28. Kf2 {[%clk 0:00:41]}  Nxf1 {[%clk 0:00:21]} 29. Kxf1 {[%clk 0:00:42]}  Rd7 {[%clk 0:00:18]} 30. c5 {[%clk 0:00:41]}  Ra5 {[%clk 0:00:18]} 31. Rc1 {[%clk 0:00:41]}  Rb5 {[%clk 0:00:13]} 32. Ba1 {[%clk 0:00:35]}  Kf7 {[%clk 0:00:14]} 33. Ng1 {[%clk 0:00:32]}  Ke6 {[%clk 0:00:13]} 34. Nf3 {[%clk 0:00:32]}  Kd5 {[%clk 0:00:13]} 35. Ng5 {[%clk 0:00:12]}  Rxc5 {[%clk 0:00:12]} 36. Rd1+ {[%clk 0:00:13]}  Kc4 {[%clk 0:00:10]} 37. Ne6 {[%clk 0:00:07]}  Rd5 {[%clk 0:00:09]} 38. Rc1+ {[%clk 0:00:08]}  Kb3 {[%clk 0:00:06]} 39. Rb1+ {[%clk 0:00:08]}  Ka2 {[%clk 0:00:06]} 40. Re1 {[%clk 0:00:05]}  R7xd6 {[%clk 0:00:05]} 41. Nc7 {[%clk 0:00:04]}  Rd1 {[%clk 0:00:05]} 42. Bc3 {[%clk 0:00:03]}  Rxe1+ {[%clk 0:00:05]} 43. Bxe1 {[%clk 0:00:04]}  Rd1 {[%clk 0:00:04]} 44. Nb5 {[%clk 0:00:03]}  Kb3 {[%clk 0:00:03]} 45. Nc7 {[%clk 0:00:02]}  Kc4 {[%clk 0:00:02]} 46. Ne6 {[%clk 0:00:02]}  Ra1 {[%clk 0:00:03]} 47. Nf8 {[%clk 0:00:03]}  Kd5 {[%clk 0:00:03]} 48. Ke2 {[%clk 0:00:03]}  b5 {[%clk 0:00:04]} 49. Nxg6 {[%clk 0:00:04]}  Ra2+ {[%clk 0:00:05]} 50. Kd3 {[%clk 0:00:04]}  b4 {[%clk 0:00:06]} 51. Ke3 {[%clk 0:00:02]}  b3 {[%clk 0:00:06]} 52. g4 {[%clk 0:00:02]}  fxg4 {[%clk 0:00:06]} 53. Bc3 {[%clk 0:00:02]}  b2 {[%clk 0:00:06]} 54. Kd3 {[%clk 0:00:02]}  Ra3 {[%clk 0:00:05]} 55. Kc2 {[%clk 0:00:02]}  Rxc3+ {[%clk 0:00:06]} 56. Kxb2 {[%clk 0:00:03]}  Rf3 {[%clk 0:00:06]} 57. Kc2 {[%clk 0:00:03]}  Ke4 {[%clk 0:00:06]} 58. Kd2 {[%clk 0:00:04]}  Nd4 {[%clk 0:00:07]} 59. Ke1 {[%clk 0:00:03]}  g3 {[%clk 0:00:06]} 60. Nh4 {[%clk 0:00:01]}  Re3+ {[%clk 0:00:05]} 61. Kf1 {[%clk 0:00:01]}  Nf3 {[%clk 0:00:05]} 0-1


[Site "https://www.chess.com"]

[Event "Titled Tuesday Blitz October 18 Late 2022"]
[White "Rego, Pedro Filipe"]
[Black "Banzea, Alexandru-Bogdan"]
[WhiteFideId "1904310"]
[BlackFideId "1232622"]
[WhiteElo "2200"]
[BlackElo "2294"]
[Result "0-1"]
[Round "11"]
[TimeControl "180+1"]
[Date "2022.10.19"]
[WhiteClock "0:00:44"]
[BlackClock "0:00:05"]

1. c4 {[%clk 0:03:00]}  Nf6 {[%clk 0:02:46]} 2. Nc3 {[%clk 0:02:53]}  g6 {[%clk 0:02:30]} 3. d4 {[%clk 0:02:51]}  Bg7 {[%clk 0:02:30]} 4. e4 {[%clk 0:02:51]}  d6 {[%clk 0:02:30]} 5. Nf3 {[%clk 0:02:51]}  O-O {[%clk 0:02:29]} 6. Be2 {[%clk 0:02:49]}  e5 {[%clk 0:02:21]} 7. O-O {[%clk 0:02:47]}  Nc6 {[%clk 0:02:21]} 8. d5 {[%clk 0:02:41]}  Ne7 {[%clk 0:02:21]} 9. b4 {[%clk 0:02:37]}  a5 {[%clk 0:02:14]} 10. Ba3 {[%clk 0:02:35]}  Re8 {[%clk 0:02:12]} 11. bxa5 {[%clk 0:02:31]}  Rxa5 {[%clk 0:01:56]} 12. Bb4 {[%clk 0:02:31]}  Ra8 {[%clk 0:01:56]} 13. a4 {[%clk 0:02:32]}  Bf8 {[%clk 0:01:24]} 14. c5 {[%clk 0:02:26]}  dxc5 {[%clk 0:01:07]} 15. Bxc5 {[%clk 0:02:24]}  Nexd5 {[%clk 0:01:07]} 16. Nxd5 {[%clk 0:02:13]}  Bxc5 {[%clk 0:01:05]} 17. Rc1 {[%clk 0:02:02]}  b6 {[%clk 0:01:01]} 18. Bb5 {[%clk 0:01:52]}  Re6 {[%clk 0:00:50]} 19. Ng5 {[%clk 0:01:51]}  Rd6 {[%clk 0:00:47]} 20. Qf3 {[%clk 0:01:47]}  h6 {[%clk 0:00:34]} 21. Nh3 {[%clk 0:01:26]}  Kg7 {[%clk 0:00:34]} 22. Rfd1 {[%clk 0:01:25]}  Bg4 {[%clk 0:00:27]} 23. Qc3 {[%clk 0:01:12]}  Bxd1 {[%clk 0:00:26]} 24. Qxe5 {[%clk 0:01:12]}  Bxa4 {[%clk 0:00:21]} 25. Bd3 {[%clk 0:01:03]}  Bc6 {[%clk 0:00:16]} 26. Nhf4 {[%clk 0:01:01]}  Bxd5 {[%clk 0:00:16]} 27. Nxd5 {[%clk 0:01:02]}  c6 {[%clk 0:00:11]} 28. Nf4 {[%clk 0:00:57]}  Rxd3 {[%clk 0:00:08]} 29. Nxd3 {[%clk 0:00:52]}  Qxd3 {[%clk 0:00:09]} 30. h4 {[%clk 0:00:52]}  Ra2 {[%clk 0:00:07]} 31. Rf1 {[%clk 0:00:51]}  Rxf2 {[%clk 0:00:06]} 32. Rxf2 {[%clk 0:00:50]}  Bxf2+ {[%clk 0:00:04]} 33. Kxf2 {[%clk 0:00:51]}  Qc2+ {[%clk 0:00:03]} 34. Kg3 {[%clk 0:00:51]}  Qxe4 {[%clk 0:00:03]} 35. Qc7 {[%clk 0:00:49]}  Qg4+ {[%clk 0:00:03]} 36. Kh2 {[%clk 0:00:48]}  Qxh4+ {[%clk 0:00:04]} 37. Kg1 {[%clk 0:00:48]}  Qd4+ {[%clk 0:00:05]} 38. Kh2 {[%clk 0:00:47]}  c5 {[%clk 0:00:05]} 39. Qxb6 {[%clk 0:00:47]}  Qf4+ {[%clk 0:00:04]} 40. Kg1 {[%clk 0:00:46]}  c4 {[%clk 0:00:04]} 41. Qc5 {[%clk 0:00:46]}  Qc1+ {[%clk 0:00:03]} 42. Kh2 {[%clk 0:00:46]}  c3 {[%clk 0:00:04]} 43. Kh3 {[%clk 0:00:46]}  c2 {[%clk 0:00:05]} 44. Qd4 {[%clk 0:00:44]}  Qd1 {[%clk 0:00:05]} 0-1


[Site "https://www.chess.com"]

[Event "Titled Tuesday Blitz October 18 Late 2022"]
[White "Roque Sola, Gisela"]
[Black "Von Buelow, Georg"]
[WhiteFideId "5120241"]
[BlackFideId "4620658"]
[WhiteElo "1961"]
[BlackElo "2230"]
[Result "1-0"]
[Round "11"]
[TimeControl "180+1"]
[Date "2022.10.19"]
[WhiteClock "0:01:38"]
[BlackClock "0:01:29"]

1. e4 {[%clk 0:03:00]}  c5 {[%clk 0:02:59]} 2. Nf3 {[%clk 0:02:59]}  d6 {[%clk 0:03:00]} 3. d4 {[%clk 0:02:58]}  cxd4 {[%clk 0:03:00]} 4. Nxd4 {[%clk 0:02:59]}  Nf6 {[%clk 0:03:00]} 5. Nc3 {[%clk 0:02:57]}  a6 {[%clk 0:03:01]} 6. Be2 {[%clk 0:02:55]}  e6 {[%clk 0:03:00]} 7. O-O {[%clk 0:02:54]}  Be7 {[%clk 0:03:00]} 8. Be3 {[%clk 0:02:52]}  O-O {[%clk 0:03:00]} 9. f4 {[%clk 0:02:51]}  Nc6 {[%clk 0:02:59]} 10. Kh1 {[%clk 0:02:51]}  Qc7 {[%clk 0:02:58]} 11. Nxc6 {[%clk 0:02:47]}  bxc6 {[%clk 0:02:58]} 12. Qe1 {[%clk 0:02:46]}  d5 {[%clk 0:02:52]} 13. e5 {[%clk 0:02:44]}  Nd7 {[%clk 0:02:52]} 14. Qg3 {[%clk 0:02:30]}  g6 {[%clk 0:02:51]} 15. Na4 {[%clk 0:02:19]}  c5 {[%clk 0:02:39]} 16. b3 {[%clk 0:02:19]}  Bb7 {[%clk 0:02:32]} 17. Rae1 {[%clk 0:02:16]}  Bc6 {[%clk 0:02:31]} 18. Nb2 {[%clk 0:02:14]}  a5 {[%clk 0:02:29]} 19. Bc1 {[%clk 0:02:01]}  a4 {[%clk 0:02:24]} 20. Bd3 {[%clk 0:01:54]}  axb3 {[%clk 0:01:50]} 21. axb3 {[%clk 0:01:52]}  Bb7 {[%clk 0:01:50]} 22. f5 {[%clk 0:01:43]}  exf5 {[%clk 0:01:48]} 23. Bxf5 {[%clk 0:01:41]}  Rae8 {[%clk 0:01:29]} 24. Bh6 {[%clk 0:01:38]} 1-0


[Site "https://www.chess.com"]

[Event "Titled Tuesday Blitz October 18 Late 2022"]
[White "Roque Sola, Jose Luis"]
[Black "Marcolino, Daniel Mattos"]
[WhiteFideId "5120390"]
[BlackFideId "2106841"]
[WhiteElo "2117"]
[BlackElo "2069"]
[Result "0-1"]
[Round "11"]
[TimeControl "180+1"]
[Date "2022.10.19"]
[WhiteClock "0:01:14"]
[BlackClock "0:01:42"]

1. c4 {[%clk 0:03:00]}  e6 {[%clk 0:02:58]} 2. Nf3 {[%clk 0:03:00]}  d5 {[%clk 0:02:58]} 3. b3 {[%clk 0:02:59]}  Nf6 {[%clk 0:02:58]} 4. Bb2 {[%clk 0:02:59]}  Be7 {[%clk 0:02:58]} 5. g3 {[%clk 0:03:00]}  O-O {[%clk 0:02:58]} 6. Bg2 {[%clk 0:03:00]}  b6 {[%clk 0:02:59]} 7. O-O {[%clk 0:02:56]}  Bb7 {[%clk 0:02:59]} 8. d3 {[%clk 0:02:49]}  Nbd7 {[%clk 0:02:59]} 9. Qc2 {[%clk 0:02:40]}  c5 {[%clk 0:02:57]} 10. e3 {[%clk 0:02:31]}  Rc8 {[%clk 0:02:54]} 11. Nbd2 {[%clk 0:02:30]}  Qc7 {[%clk 0:02:50]} 12. Rac1 {[%clk 0:02:25]}  Rfd8 {[%clk 0:02:48]} 13. cxd5 {[%clk 0:02:20]}  Nxd5 {[%clk 0:02:42]} 14. Qb1 {[%clk 0:02:01]}  Qb8 {[%clk 0:02:39]} 15. Nc4 {[%clk 0:01:54]}  Qa8 {[%clk 0:02:16]} 16. Nfe5 {[%clk 0:01:43]}  Nxe5 {[%clk 0:02:15]} 17. Nxe5 {[%clk 0:01:36]}  Nc3 {[%clk 0:01:54]} 18. Bxb7 {[%clk 0:01:34]}  Ne2+ {[%clk 0:01:53]} 19. Kg2 {[%clk 0:01:29]}  Qxb7+ {[%clk 0:01:54]} 20. f3 {[%clk 0:01:17]}  Nxc1 {[%clk 0:01:51]} 21. Qxc1 {[%clk 0:01:14]}  Bf6 {[%clk 0:01:46]} 22. Qa1 {[%clk 0:01:13]}  Bxe5 {[%clk 0:01:41]} 23. Bxe5 {[%clk 0:01:14]}  f6 {[%clk 0:01:42]} 0-1


[Site "https://www.chess.com"]

[Event "Titled Tuesday Blitz October 18 Late 2022"]
[White "Sala, Giulia"]
[Black "Harish, Neeraj"]
[WhiteFideId "2840451"]
[BlackFideId "30958130"]
[WhiteElo "1769"]
[BlackElo "1815"]
[Result "1-0"]
[Round "11"]
[TimeControl "180+1"]
[Date "2022.10.19"]
[WhiteClock "0:00:20"]
[BlackClock "0:00:01"]

1. f4 {[%clk 0:02:59]}  d5 {[%clk 0:02:55]} 2. Nf3 {[%clk 0:02:58]}  c5 {[%clk 0:02:52]} 3. g3 {[%clk 0:02:59]}  Nc6 {[%clk 0:02:48]} 4. Bg2 {[%clk 0:02:59]}  Nf6 {[%clk 0:02:48]} 5. O-O {[%clk 0:02:59]}  g6 {[%clk 0:02:42]} 6. d3 {[%clk 0:02:59]}  Bg7 {[%clk 0:02:42]} 7. Qe1 {[%clk 0:03:00]}  d4 {[%clk 0:02:36]} 8. e4 {[%clk 0:02:58]}  dxe3 {[%clk 0:02:36]} 9. Bxe3 {[%clk 0:02:56]}  Nd4 {[%clk 0:02:35]} 10. Nxd4 {[%clk 0:02:51]}  cxd4 {[%clk 0:02:34]} 11. Bd2 {[%clk 0:02:48]}  O-O {[%clk 0:02:33]} 12. Na3 {[%clk 0:02:38]}  Rb8 {[%clk 0:02:31]} 13. Nc4 {[%clk 0:02:35]}  b6 {[%clk 0:02:26]} 14. Ne5 {[%clk 0:02:35]}  Bb7 {[%clk 0:02:25]} 15. Bxb7 {[%clk 0:02:09]}  Rxb7 {[%clk 0:02:24]} 16. Qf2 {[%clk 0:02:08]}  Rc7 {[%clk 0:02:16]} 17. Bb4 {[%clk 0:01:58]}  Nd5 {[%clk 0:02:01]} 18. Ba3 {[%clk 0:01:56]}  Ne3 {[%clk 0:01:47]} 19. Rfc1 {[%clk 0:01:55]}  Qd5 {[%clk 0:01:45]} 20. Nf3 {[%clk 0:01:53]}  Rfc8 {[%clk 0:01:43]} 21. c4 {[%clk 0:01:51]}  Qd7 {[%clk 0:01:38]} 22. Re1 {[%clk 0:01:44]}  e6 {[%clk 0:01:37]} 23. Bb4 {[%clk 0:01:40]}  a5 {[%clk 0:01:27]} 24. Ba3 {[%clk 0:01:37]}  a4 {[%clk 0:01:26]} 25. Bb4 {[%clk 0:01:35]}  b5 {[%clk 0:01:21]} 26. b3 {[%clk 0:01:29]}  bxc4 {[%clk 0:01:19]} 27. bxc4 {[%clk 0:01:24]}  Rb7 {[%clk 0:01:16]} 28. a3 {[%clk 0:01:23]}  Qc6 {[%clk 0:00:56]} 29. h3 {[%clk 0:01:16]}  Rd8 {[%clk 0:00:51]} 30. Kh2 {[%clk 0:01:09]}  h5 {[%clk 0:00:43]} 31. Rac1 {[%clk 0:01:08]}  Qc7 {[%clk 0:00:40]} 32. Re2 {[%clk 0:01:01]}  Qc6 {[%clk 0:00:32]} 33. Ng5 {[%clk 0:00:58]}  f6 {[%clk 0:00:28]} 34. Ne4 {[%clk 0:00:57]}  e5 {[%clk 0:00:26]} 35. Nc5 {[%clk 0:00:55]}  Rbb8 {[%clk 0:00:20]} 36. fxe5 {[%clk 0:00:37]}  fxe5 {[%clk 0:00:19]} 37. Rxe3 {[%clk 0:00:34]}  dxe3 {[%clk 0:00:18]} 38. Qxe3 {[%clk 0:00:35]}  Rd4 {[%clk 0:00:14]} 39. Qg5 {[%clk 0:00:28]}  Rbd8 {[%clk 0:00:12]} 40. Rf1 {[%clk 0:00:25]}  Bf8 {[%clk 0:00:07]} 41. Rf6 {[%clk 0:00:23]}  Qd7 {[%clk 0:00:04]} 42. Rxg6+ {[%clk 0:00:21]}  Bg7 {[%clk 0:00:03]} 43. Ne6 {[%clk 0:00:20]}  Rxd3 {[%clk 0:00:01]} 44. Rxg7+ {[%clk 0:00:20]}  Qxg7 {[%clk 0:00:01]} 45. Qxg7# {[%clk 0:00:20]} 1-0


[Site "https://www.chess.com"]

[Event "Titled Tuesday Blitz October 18 Late 2022"]
[White "Sargsyan, Anna M."]
[Black "Fajdetic, Hrvoje"]
[WhiteFideId "13308130"]
[BlackFideId "14501945"]
[WhiteElo "2284"]
[BlackElo "2172"]
[Result "1-0"]
[Round "11"]
[TimeControl "180+1"]
[Date "2022.10.18"]
[WhiteClock "0:00:27"]
[BlackClock "0:00:08"]

1. d4 {[%clk 0:03:00]}  e6 {[%clk 0:02:56]} 2. c4 {[%clk 0:03:00]}  f5 {[%clk 0:02:56]} 3. Nc3 {[%clk 0:02:59]}  Nf6 {[%clk 0:02:56]} 4. Bg5 {[%clk 0:03:00]}  Bb4 {[%clk 0:02:56]} 5. Rc1 {[%clk 0:02:53]}  O-O {[%clk 0:02:56]} 6. e3 {[%clk 0:02:50]}  d6 {[%clk 0:02:55]} 7. Nf3 {[%clk 0:02:47]}  Qe8 {[%clk 0:02:54]} 8. Bxf6 {[%clk 0:02:42]}  Rxf6 {[%clk 0:02:55]} 9. a3 {[%clk 0:02:41]}  Bxc3+ {[%clk 0:02:55]} 10. Rxc3 {[%clk 0:02:41]}  Nc6 {[%clk 0:02:48]} 11. Be2 {[%clk 0:02:40]}  e5 {[%clk 0:02:47]} 12. O-O {[%clk 0:02:33]}  e4 {[%clk 0:02:42]} 13. Nd2 {[%clk 0:02:30]}  f4 {[%clk 0:02:41]} 14. d5 {[%clk 0:02:17]}  f3 {[%clk 0:02:23]} 15. gxf3 {[%clk 0:01:42]}  exf3 {[%clk 0:02:16]} 16. Bxf3 {[%clk 0:01:30]}  Ne5 {[%clk 0:01:59]} 17. Bg2 {[%clk 0:01:27]}  Qg6 {[%clk 0:01:35]} 18. e4 {[%clk 0:01:20]}  Bg4 {[%clk 0:01:32]} 19. Qb3 {[%clk 0:01:01]}  Nf3+ {[%clk 0:01:17]} 20. Nxf3 {[%clk 0:01:00]}  Bxf3 {[%clk 0:01:17]} 21. Rxf3 {[%clk 0:00:59]}  Rxf3 {[%clk 0:01:17]} 22. Qxf3 {[%clk 0:00:59]}  Rf8 {[%clk 0:01:15]} 23. Qg3 {[%clk 0:00:58]}  Qf6 {[%clk 0:01:13]} 24. b4 {[%clk 0:00:55]}  Qd4 {[%clk 0:01:08]} 25. Kh1 {[%clk 0:00:54]}  Qxc4 {[%clk 0:01:08]} 26. Rg1 {[%clk 0:00:53]}  Rf7 {[%clk 0:01:05]} 27. f4 {[%clk 0:00:52]}  Re7 {[%clk 0:00:53]} 28. f5 {[%clk 0:00:51]}  Qd4 {[%clk 0:00:49]} 29. h3 {[%clk 0:00:46]}  Qf6 {[%clk 0:00:42]} 30. Bf3 {[%clk 0:00:45]}  Re5 {[%clk 0:00:41]} 31. Qg5 {[%clk 0:00:44]}  Qf8 {[%clk 0:00:35]} 32. Qh4 {[%clk 0:00:39]}  Kh8 {[%clk 0:00:27]} 33. Rg5 {[%clk 0:00:35]}  c6 {[%clk 0:00:26]} 34. dxc6 {[%clk 0:00:31]}  bxc6 {[%clk 0:00:26]} 35. Rg2 {[%clk 0:00:27]}  d5 {[%clk 0:00:25]} 36. Rd2 {[%clk 0:00:27]}  g6 {[%clk 0:00:13]} 37. Kg2 {[%clk 0:00:24]}  gxf5 {[%clk 0:00:13]} 38. exd5 {[%clk 0:00:24]}  Qg8+ {[%clk 0:00:10]} 39. Qg3 {[%clk 0:00:24]}  Qxg3+ {[%clk 0:00:09]} 40. Kxg3 {[%clk 0:00:25]}  cxd5 {[%clk 0:00:08]} 41. Rxd5 {[%clk 0:00:26]}  Re3 {[%clk 0:00:07]} 42. a4 {[%clk 0:00:26]}  Rb3 {[%clk 0:00:06]} 43. b5 {[%clk 0:00:25]}  f4+ {[%clk 0:00:05]} 44. Kxf4 {[%clk 0:00:23]}  Rb4+ {[%clk 0:00:06]} 45. Be4 {[%clk 0:00:24]}  Rxa4 {[%clk 0:00:07]} 46. Rd7 {[%clk 0:00:24]}  Ra5 {[%clk 0:00:06]} 47. Rxh7+ {[%clk 0:00:24]}  Kg8 {[%clk 0:00:06]} 48. Rb7 {[%clk 0:00:25]}  Kf8 {[%clk 0:00:05]} 49. h4 {[%clk 0:00:25]}  Kg8 {[%clk 0:00:06]} 50. h5 {[%clk 0:00:26]}  Kf8 {[%clk 0:00:06]} 51. h6 {[%clk 0:00:27]}  Kg8 {[%clk 0:00:06]} 52. h7+ {[%clk 0:00:27]}  Kh8 {[%clk 0:00:07]} 53. Rb8+ {[%clk 0:00:27]}  Kg7 {[%clk 0:00:08]} 54. h8=Q+ {[%clk 0:00:28]}  Kf7 {[%clk 0:00:08]} 55. Rf8+ {[%clk 0:00:26]}  Ke7 {[%clk 0:00:08]} 56. Qf6+ {[%clk 0:00:26]}  Kd7 {[%clk 0:00:08]} 57. Rd8+ {[%clk 0:00:27]}  Kc7 {[%clk 0:00:08]} 58. Qd6# {[%clk 0:00:27]} 1-0


[Site "https://www.chess.com"]

[Event "Titled Tuesday Blitz October 18 Late 2022"]
[White "Shapiro, Daniel"]
[Black "Yano, William Jorge Froes"]
[WhiteFideId "2001780"]
[BlackFideId "2112949"]
[WhiteElo "2225"]
[BlackElo "2122"]
[Result "1/2-1/2"]
[Round "11"]
[TimeControl "180+1"]
[Date "2022.10.19"]
[WhiteClock "0:00:02"]
[BlackClock "0:00:14"]

1. d4 {[%clk 0:02:57]}  Nf6 {[%clk 0:02:59]} 2. c4 {[%clk 0:02:54]}  c5 {[%clk 0:02:59]} 3. d5 {[%clk 0:02:53]}  b5 {[%clk 0:03:00]} 4. cxb5 {[%clk 0:02:54]}  a6 {[%clk 0:03:00]} 5. e3 {[%clk 0:02:54]}  g6 {[%clk 0:02:59]} 6. Nc3 {[%clk 0:02:53]}  d6 {[%clk 0:02:59]} 7. a4 {[%clk 0:02:52]}  Bg7 {[%clk 0:02:59]} 8. h3 {[%clk 0:02:51]}  O-O {[%clk 0:02:57]} 9. Nf3 {[%clk 0:02:51]}  Ne8 {[%clk 0:02:56]} 10. Ra3 {[%clk 0:02:41]}  axb5 {[%clk 0:02:46]} 11. Bxb5 {[%clk 0:02:39]}  Nc7 {[%clk 0:02:45]} 12. Bc4 {[%clk 0:02:37]}  Ba6 {[%clk 0:02:44]} 13. Qd3 {[%clk 0:02:36]}  Nd7 {[%clk 0:02:39]} 14. e4 {[%clk 0:02:26]}  Nb6 {[%clk 0:02:36]} 15. Bxa6 {[%clk 0:02:24]}  Nxa6 {[%clk 0:02:37]} 16. Bf4 {[%clk 0:02:15]}  Nb4 {[%clk 0:02:23]} 17. Qe2 {[%clk 0:02:15]}  f6 {[%clk 0:02:07]} 18. O-O {[%clk 0:02:03]}  Ra5 {[%clk 0:02:06]} 19. Rc1 {[%clk 0:01:51]}  Qa8 {[%clk 0:02:04]} 20. b3 {[%clk 0:01:43]}  Qa6 {[%clk 0:01:58]} 21. Qxa6 {[%clk 0:01:31]}  Rxa6 {[%clk 0:01:59]} 22. Nd2 {[%clk 0:01:28]}  Rfa8 {[%clk 0:01:57]} 23. Be3 {[%clk 0:01:23]}  Ra5 {[%clk 0:01:38]} 24. Nc4 {[%clk 0:01:09]}  Nxc4 {[%clk 0:01:38]} 25. bxc4 {[%clk 0:01:09]}  Nd3 {[%clk 0:01:36]} 26. Rc2 {[%clk 0:00:58]}  Ne5 {[%clk 0:01:35]} 27. Rb3 {[%clk 0:00:43]}  Nxc4 {[%clk 0:01:29]} 28. Bc1 {[%clk 0:00:43]}  Kf7 {[%clk 0:01:13]} 29. Rb7 {[%clk 0:00:42]}  R8a7 {[%clk 0:01:03]} 30. Rb8 {[%clk 0:00:32]}  f5 {[%clk 0:01:03]} 31. exf5 {[%clk 0:00:31]}  gxf5 {[%clk 0:01:03]} 32. Bg5 {[%clk 0:00:29]}  Nb2 {[%clk 0:00:26]} 33. Rbxb2 {[%clk 0:00:26]}  Bxc3 {[%clk 0:00:24]} 34. Rxc3 {[%clk 0:00:26]}  Rxa4 {[%clk 0:00:25]} 35. Re3 {[%clk 0:00:24]}  Rd4 {[%clk 0:00:23]} 36. Rbe2 {[%clk 0:00:24]}  Rxd5 {[%clk 0:00:19]} 37. Rxe7+ {[%clk 0:00:23]}  Rxe7 {[%clk 0:00:20]} 38. Rxe7+ {[%clk 0:00:23]}  Kg6 {[%clk 0:00:19]} 39. Bf4 {[%clk 0:00:22]}  Rd4 {[%clk 0:00:19]} 40. g3 {[%clk 0:00:19]}  d5 {[%clk 0:00:19]} 41. Rc7 {[%clk 0:00:17]}  c4 {[%clk 0:00:19]} 42. Be5 {[%clk 0:00:15]}  Rd3 {[%clk 0:00:19]} 43. Kf1 {[%clk 0:00:14]}  h5 {[%clk 0:00:18]} 44. h4 {[%clk 0:00:12]}  Rd2 {[%clk 0:00:14]} 45. Rg7+ {[%clk 0:00:11]}  Kh6 {[%clk 0:00:14]} 46. Rg8 {[%clk 0:00:09]}  Rd3 {[%clk 0:00:13]} 47. Rg5 {[%clk 0:00:07]}  c3 {[%clk 0:00:13]} 48. Rxf5 {[%clk 0:00:05]}  c2 {[%clk 0:00:13]} 49. Bf4+ {[%clk 0:00:04]}  Kg6 {[%clk 0:00:13]} 50. Re5 {[%clk 0:00:04]}  Rd1+ {[%clk 0:00:13]} 51. Ke2 {[%clk 0:00:04]}  c1=Q {[%clk 0:00:13]} 52. Bxc1 {[%clk 0:00:04]}  Rxc1 {[%clk 0:00:14]} 53. Rxd5 {[%clk 0:00:04]}  Rc4 {[%clk 0:00:14]} 54. Kf3 {[%clk 0:00:04]}  Rc2 {[%clk 0:00:13]} 55. Rg5+ {[%clk 0:00:04]}  Kh6 {[%clk 0:00:12]} 56. Ke3 {[%clk 0:00:04]}  Rc3+ {[%clk 0:00:12]} 57. Ke4 {[%clk 0:00:04]}  Rc4+ {[%clk 0:00:12]} 58. Kf5 {[%clk 0:00:03]}  Rc5+ {[%clk 0:00:12]} 59. Kf4 {[%clk 0:00:04]}  Rc4+ {[%clk 0:00:12]} 60. Kf3 {[%clk 0:00:04]}  Rc3+ {[%clk 0:00:12]} 61. Kg2 {[%clk 0:00:05]}  Rc2 {[%clk 0:00:13]} 62. Ra5 {[%clk 0:00:04]}  Rb2 {[%clk 0:00:12]} 63. Ra6+ {[%clk 0:00:04]}  Kg7 {[%clk 0:00:12]} 64. Kf3 {[%clk 0:00:04]}  Rb3+ {[%clk 0:00:12]} 65. Kf4 {[%clk 0:00:04]}  Rb4+ {[%clk 0:00:12]} 66. Kf5 {[%clk 0:00:03]}  Rb5+ {[%clk 0:00:13]} 67. Kf4 {[%clk 0:00:03]}  Rb4+ {[%clk 0:00:13]} 68. Ke3 {[%clk 0:00:03]}  Rb3+ {[%clk 0:00:13]} 69. Ke4 {[%clk 0:00:03]}  Rb4+ {[%clk 0:00:14]} 70. Ke3 {[%clk 0:00:03]}  Rb3+ {[%clk 0:00:14]} 71. Kd4 {[%clk 0:00:02]}  Rb4+ {[%clk 0:00:14]} 72. Ke3 {[%clk 0:00:02]} 1/2-1/2


[Site "https://www.chess.com"]